[Event "Late-Titled-Tuesday-Blitz-January-23-2024"]
[Site "Chess.com"]
[Date "2024.01.23"]
[Round "9"]
[White "PNEPaul"]
[Black "TV27"]
[Result "1/2-1/2"]
[WhiteElo "1927"]
[BlackElo "2172"]
[TimeControl "180+1"]
[EndTime "15:41:08 PST"]
[Termination "Game drawn by agreement"]

1. e4 {[%clk 0:02:57.2]} 1... c5 {[%clk 0:02:59.8]} 2. Nf3 {[%clk 0:02:56.4]}
2... Nc6 {[%clk 0:02:59]} 3. d4 {[%clk 0:02:56.4]} 3... cxd4 {[%clk 0:02:59]} 4.
c3 {[%clk 0:02:56.5]} 4... Nf6 {[%clk 0:02:58.3]} 5. e5 {[%clk 0:02:55.7]} 5...
Nd5 {[%clk 0:02:56.1]} 6. cxd4 {[%clk 0:02:55.8]} 6... d6 {[%clk 0:02:54.7]} 7.
Bc4 {[%clk 0:02:54.6]} 7... dxe5 {[%clk 0:02:41.8]} 8. dxe5 {[%clk 0:02:53.8]}
8... Be6 {[%clk 0:02:41.4]} 9. O-O {[%clk 0:02:49.1]} 9... Nc7 {[%clk 0:02:33]}
10. Qxd8+ {[%clk 0:02:34.8]} 10... Rxd8 {[%clk 0:02:31.4]} 11. Bxe6 {[%clk
0:02:34.6]} 11... Nxe6 {[%clk 0:02:30.9]} 12. Nc3 {[%clk 0:02:34.6]} 12... g6
{[%clk 0:02:27.9]} 13. Re1 {[%clk 0:02:23.7]} 13... Bg7 {[%clk 0:02:27.4]} 14.
h3 {[%clk 0:01:55.7]} 14... O-O {[%clk 0:02:22.5]} 15. Be3 {[%clk 0:01:44]}
15... Nb4 {[%clk 0:02:17.5]} 16. Rad1 {[%clk 0:01:33.4]} 16... Nc2 {[%clk
0:02:13.9]} 17. Rxd8 {[%clk 0:01:24.8]} 17... Rxd8 {[%clk 0:02:12.7]} 18. Re2
{[%clk 0:01:19.5]} 18... Nxe3 {[%clk 0:02:11.9]} 19. Rxe3 {[%clk 0:01:19]} 19...
a6 {[%clk 0:01:59.8]} 20. Ne4 {[%clk 0:01:10.8]} 20... h6 {[%clk 0:01:57.3]} 21.
Rb3 {[%clk 0:01:08.9]} 21... Nd4 {[%clk 0:01:49.3]} 22. Rxb7 {[%clk 0:00:51.5]}
22... Nxf3+ {[%clk 0:01:48.5]} 23. gxf3 {[%clk 0:00:51.4]} 23... Bxe5 {[%clk
0:01:49.1]} 24. Rxe7 {[%clk 0:00:46.9]} 24... Bxb2 {[%clk 0:01:48.4]} 25. Ra7
{[%clk 0:00:40.3]} 25... f5 {[%clk 0:01:34.8]} 26. Nc5 {[%clk 0:00:35.5]} 26...
Bd4 {[%clk 0:01:29.5]} 27. Ne6 {[%clk 0:00:19.5]} 27... Bxa7 {[%clk 0:01:28.3]}
28. Nxd8 {[%clk 0:00:19.3]} 28... Bd4 {[%clk 0:01:27.9]} 29. Nc6 {[%clk
0:00:18.2]} 29... Bc3 {[%clk 0:01:23.3]} 30. Kf1 {[%clk 0:00:17.8]} 30... Kf7
{[%clk 0:01:23]} 31. Ke2 {[%clk 0:00:17.4]} 1/2-1/2

[Event "Late-Titled-Tuesday-Blitz-January-23-2024"]
[Site "Chess.com"]
[Date "2024.01.23"]
[Round "9"]
[White "Doomfist26"]
[Black "krzyzan94"]
[Result "1-0"]
[WhiteElo "2635"]
[BlackElo "2763"]
[TimeControl "180+1"]
[EndTime "15:41:09 PST"]
[Termination "Doomfist26 won on time"]

1. e4 {[%clk 0:02:55.6]} 1... c5 {[%clk 0:02:59.7]} 2. Nf3 {[%clk 0:02:55.4]}
2... d6 {[%clk 0:02:59.7]} 3. d4 {[%clk 0:02:54.3]} 3... cxd4 {[%clk 0:03:00.6]}
4. Nxd4 {[%clk 0:02:54.8]} 4... Nf6 {[%clk 0:03:01.2]} 5. Nc3 {[%clk 0:02:55.5]}
5... a6 {[%clk 0:03:01.8]} 6. Bd3 {[%clk 0:02:56.1]} 6... g6 {[%clk 0:03:00.8]}
7. f3 {[%clk 0:02:49.7]} 7... Bg7 {[%clk 0:02:59.3]} 8. Be3 {[%clk 0:02:49.7]}
8... Nc6 {[%clk 0:02:53.6]} 9. Qd2 {[%clk 0:02:41.2]} 9... Bd7 {[%clk 0:02:48]}
10. O-O-O {[%clk 0:02:39.8]} 10... Rc8 {[%clk 0:02:38.5]} 11. g4 {[%clk
0:02:33.8]} 11... b5 {[%clk 0:02:30.1]} 12. h4 {[%clk 0:02:14.9]} 12... b4
{[%clk 0:02:27.5]} 13. Nce2 {[%clk 0:02:09.9]} 13... Ne5 {[%clk 0:01:42.9]} 14.
h5 {[%clk 0:02:06.4]} 14... Nc4 {[%clk 0:01:20.7]} 15. Bxc4 {[%clk 0:02:04.9]}
15... Rxc4 {[%clk 0:01:21.6]} 16. hxg6 {[%clk 0:01:48.9]} 16... fxg6 {[%clk
0:01:03.2]} 17. e5 {[%clk 0:01:41.2]} 17... Nd5 {[%clk 0:00:47.2]} 18. exd6
{[%clk 0:01:33.9]} 18... e5 {[%clk 0:00:45.3]} 19. Nf5 {[%clk 0:01:14.3]} 19...
Bxf5 {[%clk 0:00:16.1]} 20. gxf5 {[%clk 0:01:14.1]} 20... Nxe3 {[%clk
0:00:13.9]} 21. Qxe3 {[%clk 0:01:14.5]} 21... O-O {[%clk 0:00:11.7]} 22. Qb3
{[%clk 0:01:07.3]} 22... Qg5+ {[%clk 0:00:05.6]} 23. f4 {[%clk 0:01:06.6]} 23...
Qxf5 {[%clk 0:00:02.7]} 24. Qxc4+ {[%clk 0:01:06.6]} 24... Kh8 {[%clk
0:00:03.6]} 25. d7 {[%clk 0:01:05]} 25... Bf6 {[%clk 0:00:02.3]} 26. Kb1 {[%clk
0:00:58.2]} 26... exf4 {[%clk 0:00:01.9]} 27. Nxf4 {[%clk 0:00:58.4]} 1-0

[Event "Late-Titled-Tuesday-Blitz-January-23-2024"]
[Site "Chess.com"]
[Date "2024.01.23"]
[Round "9"]
[White "ninguno46"]
[Black "otrov-11"]
[Result "0-1"]
[WhiteElo "2570"]
[BlackElo "2498"]
[TimeControl "180+1"]
[EndTime "15:41:11 PST"]
[Termination "otrov-11 won by checkmate"]

1. e4 {[%clk 0:02:58.7]} 1... e6 {[%clk 0:02:58.6]} 2. d4 {[%clk 0:02:58.2]}
2... d5 {[%clk 0:02:59.3]} 3. Nc3 {[%clk 0:02:58.4]} 3... Bb4 {[%clk 0:02:59.4]}
4. e5 {[%clk 0:02:57.6]} 4... c5 {[%clk 0:03:00]} 5. a3 {[%clk 0:02:56.1]} 5...
Bxc3+ {[%clk 0:03:00.2]} 6. bxc3 {[%clk 0:02:57]} 6... Ne7 {[%clk 0:03:00.7]} 7.
Qg4 {[%clk 0:02:55.7]} 7... Qc7 {[%clk 0:03:00.8]} 8. Bd3 {[%clk 0:02:53.7]}
8... c4 {[%clk 0:02:54.6]} 9. Be2 {[%clk 0:02:52.6]} 9... Nf5 {[%clk 0:02:54.2]}
10. Qh3 {[%clk 0:02:51.8]} 10... Qa5 {[%clk 0:02:44.5]} 11. Bd2 {[%clk
0:02:49.7]} 11... Nc6 {[%clk 0:02:44.8]} 12. g4 {[%clk 0:02:43.6]} 12... Nfe7
{[%clk 0:02:44.2]} 13. a4 {[%clk 0:02:40.9]} 13... Bd7 {[%clk 0:02:42.2]} 14.
Nf3 {[%clk 0:02:33.9]} 14... O-O-O {[%clk 0:02:37.2]} 15. O-O {[%clk 0:02:21.5]}
15... f6 {[%clk 0:02:37.2]} 16. exf6 {[%clk 0:02:17.6]} 16... gxf6 {[%clk
0:02:38.1]} 17. Rfb1 {[%clk 0:02:14.5]} 17... e5 {[%clk 0:02:28.7]} 18. Kh1
{[%clk 0:02:07.7]} 18... h5 {[%clk 0:02:27]} 19. Nh4 {[%clk 0:01:56.3]} 19...
hxg4 {[%clk 0:02:17.6]} 20. Qg3 {[%clk 0:01:55.3]} 20... Rdg8 {[%clk 0:02:07.5]}
21. dxe5 {[%clk 0:01:48]} 21... fxe5 {[%clk 0:01:59.5]} 22. Rb5 {[%clk
0:01:39.9]} 22... Qd8 {[%clk 0:01:57.7]} 23. Rab1 {[%clk 0:01:39]} 23... b6
{[%clk 0:01:55.9]} 24. Bf1 {[%clk 0:01:26.7]} 24... Rh5 {[%clk 0:01:40.1]} 25.
a5 {[%clk 0:00:55.8]} 25... Nxa5 {[%clk 0:01:36]} 26. Rxa5 {[%clk 0:00:55.1]}
26... bxa5 {[%clk 0:01:36.9]} 27. Qe3 {[%clk 0:00:54.7]} 27... Nc6 {[%clk
0:01:25]} 28. Qc5 {[%clk 0:00:39.3]} 28... Qxh4 {[%clk 0:01:21.4]} 29. h3 {[%clk
0:00:34.5]} 29... g3 {[%clk 0:01:13]} 30. Qxd5 {[%clk 0:00:11]} 30... g2+ {[%clk
0:01:04.6]} 31. Bxg2 {[%clk 0:00:10.1]} 31... Qxh3+ {[%clk 0:01:03.3]} 32. Kg1
{[%clk 0:00:08.1]} 32... Qh1# {[%clk 0:01:02.9]} 0-1

[Event "Late-Titled-Tuesday-Blitz-January-23-2024"]
[Site "Chess.com"]
[Date "2024.01.23"]
[Round "9"]
[White "BeanScreen"]
[Black "StankovicIvan"]
[Result "1-0"]
[WhiteElo "2732"]
[BlackElo "2557"]
[TimeControl "180+1"]
[EndTime "15:41:18 PST"]
[Termination "BeanScreen won by resignation"]

1. e4 {[%clk 0:03:00.9]} 1... c5 {[%clk 0:02:59.4]} 2. c3 {[%clk 0:03:00.7]}
2... d5 {[%clk 0:02:58.2]} 3. exd5 {[%clk 0:03:00.6]} 3... Qxd5 {[%clk
0:02:59.1]} 4. d4 {[%clk 0:03:00.7]} 4... Nc6 {[%clk 0:02:58.5]} 5. Nf3 {[%clk
0:03:00.3]} 5... Bg4 {[%clk 0:02:57.9]} 6. dxc5 {[%clk 0:02:58.7]} 6... Qxd1+
{[%clk 0:02:50]} 7. Kxd1 {[%clk 0:02:59.6]} 7... e5 {[%clk 0:02:50.1]} 8. b4
{[%clk 0:02:57.8]} 8... e4 {[%clk 0:02:48.3]} 9. h3 {[%clk 0:02:57.5]} 9...
O-O-O+ {[%clk 0:02:43.9]} 10. Nd2 {[%clk 0:02:50.2]} 10... Bxf3+ {[%clk
0:02:23.1]} 11. gxf3 {[%clk 0:02:49.6]} 11... exf3 {[%clk 0:02:23.4]} 12. Kc2
{[%clk 0:02:49.2]} 12... Nf6 {[%clk 0:02:18.9]} 13. Nxf3 {[%clk 0:02:47.5]}
13... g6 {[%clk 0:02:11.3]} 14. Bc4 {[%clk 0:02:43]} 14... Ne4 {[%clk 0:02:04]}
15. Bxf7 {[%clk 0:02:25.9]} 15... Bg7 {[%clk 0:01:55]} 16. Bf4 {[%clk
0:02:24.1]} 16... Rdf8 {[%clk 0:01:33.8]} 17. Be6+ {[%clk 0:02:19.8]} 17... Kd8
{[%clk 0:01:34]} 18. Bg5+ {[%clk 0:01:44.2]} 18... Kc7 {[%clk 0:01:18.3]} 19.
Rhe1 {[%clk 0:01:23.6]} 19... Rxf3 {[%clk 0:01:17.7]} 20. Rxe4 {[%clk
0:01:21.3]} 20... Rxc3+ {[%clk 0:01:17.4]} 21. Kd2 {[%clk 0:01:20.1]} 21... Nxb4
{[%clk 0:01:06.4]} 22. Rxb4 {[%clk 0:01:14]} 22... Re8 {[%clk 0:00:52.2]} 23.
Re1 {[%clk 0:01:02.3]} 23... Rxc5 {[%clk 0:00:44.4]} 24. Bf4+ {[%clk 0:01:01.7]}
24... Kc6 {[%clk 0:00:41.2]} 25. Rb3 {[%clk 0:00:57.2]} 25... g5 {[%clk
0:00:16.3]} 26. Rd3 {[%clk 0:00:53.3]} 26... Kb6 {[%clk 0:00:09.3]} 27. Be3
{[%clk 0:00:52]} 27... Bc3+ {[%clk 0:00:07.1]} 28. Rxc3 {[%clk 0:00:50.8]} 1-0

[Event "Late-Titled-Tuesday-Blitz-January-23-2024"]
[Site "Chess.com"]
[Date "2024.01.23"]
[Round "9"]
[White "rhungaski"]
[Black "TheAlienParty"]
[Result "0-1"]
[WhiteElo "2503"]
[BlackElo "2388"]
[TimeControl "180+1"]
[EndTime "15:41:18 PST"]
[Termination "TheAlienParty won on time"]

1. e4 {[%clk 0:03:00.9]} 1... e5 {[%clk 0:02:54.8]} 2. Nf3 {[%clk 0:03:00.7]}
2... Nc6 {[%clk 0:02:53.9]} 3. d4 {[%clk 0:03:01.1]} 3... exd4 {[%clk
0:02:53.2]} 4. Nxd4 {[%clk 0:03:02]} 4... Bc5 {[%clk 0:02:51]} 5. Be3 {[%clk
0:03:01.3]} 5... Qf6 {[%clk 0:02:48.9]} 6. Nb5 {[%clk 0:03:00.5]} 6... Bxe3
{[%clk 0:02:47]} 7. fxe3 {[%clk 0:03:01.4]} 7... Qe5 {[%clk 0:02:45.9]} 8. Nd2
{[%clk 0:02:06.9]} 8... Kd8 {[%clk 0:02:25.7]} 9. Nc3 {[%clk 0:01:50.1]} 9...
Nf6 {[%clk 0:02:07.1]} 10. a4 {[%clk 0:01:28.8]} 10... d6 {[%clk 0:02:04.7]} 11.
Bb5 {[%clk 0:01:11.3]} 11... Bg4 {[%clk 0:02:03.1]} 12. Nf3 {[%clk 0:01:04.6]}
12... Qc5 {[%clk 0:01:53.5]} 13. Qd2 {[%clk 0:00:55.9]} 13... Re8 {[%clk
0:01:47.6]} 14. O-O-O {[%clk 0:00:14.8]} 14... Nxe4 {[%clk 0:01:46]} 15. Nxe4
{[%clk 0:00:15.2]} 15... Rxe4 {[%clk 0:01:45.9]} 16. Bxc6 {[%clk 0:00:13.8]}
16... bxc6 {[%clk 0:01:44.6]} 17. Rhe1 {[%clk 0:00:07.2]} 17... Rb8 {[%clk
0:01:43.8]} 18. Nd4 {[%clk 0:00:03.2]} 18... Bxd1 {[%clk 0:01:40.9]} 19. Rxd1
{[%clk 0:00:03]} 19... Ke8 {[%clk 0:01:39.1]} 20. b3 {[%clk 0:00:02.7]} 20...
Qa3+ {[%clk 0:01:25]} 21. Kb1 {[%clk 0:00:03]} 21... Qxa4 {[%clk 0:01:24.6]} 22.
Qd3 {[%clk 0:00:02.2]} 22... Re5 {[%clk 0:01:17.7]} 23. Qxh7 {[%clk 0:00:02.1]}
23... Ra5 {[%clk 0:00:55.3]} 24. Qg8+ {[%clk 0:00:02.2]} 24... Ke7 {[%clk
0:00:55.4]} 25. Nxc6+ {[%clk 0:00:02.1]} 25... Qxc6 {[%clk 0:00:51.9]} 26. Qxb8
{[%clk 0:00:02]} 26... Rc5 {[%clk 0:00:49.7]} 0-1

[Event "Late-Titled-Tuesday-Blitz-January-23-2024"]
[Site "Chess.com"]
[Date "2024.01.23"]
[Round "9"]
[White "Sjakkerntobi"]
[Black "JoakimVonAnd"]
[Result "0-1"]
[WhiteElo "2509"]
[BlackElo "2632"]
[TimeControl "180+1"]
[EndTime "15:41:27 PST"]
[Termination "JoakimVonAnd won by checkmate"]

1. e4 {[%clk 0:03:00.9]} 1... c6 {[%clk 0:02:59.5]} 2. Nc3 {[%clk 0:03:00.7]}
2... d5 {[%clk 0:03:00.4]} 3. Nf3 {[%clk 0:03:00.8]} 3... Nf6 {[%clk 0:03:00.2]}
4. e5 {[%clk 0:03:00.5]} 4... Ne4 {[%clk 0:03:00.2]} 5. Ne2 {[%clk 0:03:01.3]}
5... Qb6 {[%clk 0:03:00.2]} 6. d4 {[%clk 0:03:02]} 6... e6 {[%clk 0:03:00.6]} 7.
Ng3 {[%clk 0:03:02.4]} 7... c5 {[%clk 0:03:01.2]} 8. Bd3 {[%clk 0:03:01.4]} 8...
Nxg3 {[%clk 0:03:00.4]} 9. fxg3 {[%clk 0:03:02.3]} 9... Nc6 {[%clk 0:03:00.2]}
10. a3 {[%clk 0:02:59.6]} 10... h6 {[%clk 0:02:59.3]} 11. O-O {[%clk 0:02:58.3]}
11... Bd7 {[%clk 0:02:59.3]} 12. g4 {[%clk 0:02:58.7]} 12... O-O-O {[%clk
0:02:58]} 13. dxc5 {[%clk 0:02:50.2]} 13... Bxc5+ {[%clk 0:02:57.8]} 14. Kh1
{[%clk 0:02:50.9]} 14... f6 {[%clk 0:02:57.8]} 15. b4 {[%clk 0:02:49.7]} 15...
Be7 {[%clk 0:02:54]} 16. Bb2 {[%clk 0:02:48.1]} 16... Rhf8 {[%clk 0:02:53.8]}
17. Qe2 {[%clk 0:02:47]} 17... Kb8 {[%clk 0:02:47.2]} 18. c4 {[%clk 0:02:47.1]}
18... Bc8 {[%clk 0:02:35.1]} 19. c5 {[%clk 0:02:28]} 19... Qc7 {[%clk
0:02:34.6]} 20. Rfc1 {[%clk 0:02:21.4]} 20... fxe5 {[%clk 0:02:28.7]} 21. Nxe5
{[%clk 0:02:20.4]} 21... Bf6 {[%clk 0:02:29.2]} 22. Nxc6+ {[%clk 0:02:14.3]}
22... bxc6 {[%clk 0:02:25.9]} 23. b5 {[%clk 0:02:12.1]} 23... e5 {[%clk
0:02:13.6]} 24. bxc6 {[%clk 0:02:11.8]} 24... e4 {[%clk 0:02:13.9]} 25. Ba6
{[%clk 0:01:52.3]} 25... Qxc6 {[%clk 0:01:46.6]} 26. Bxc8 {[%clk 0:01:49.4]}
26... Rxc8 {[%clk 0:01:47.5]} 27. Rab1 {[%clk 0:01:48.3]} 27... Ka8 {[%clk
0:01:47.2]} 28. a4 {[%clk 0:01:06.1]} 28... d4 {[%clk 0:01:38.5]} 29. Qc4 {[%clk
0:01:06.1]} 29... d3 {[%clk 0:01:36]} 30. Ba3 {[%clk 0:01:06.2]} 30... d2 {[%clk
0:01:34.7]} 31. Rd1 {[%clk 0:01:05.4]} 31... e3 {[%clk 0:01:35]} 32. Rb6 {[%clk
0:00:47.8]} 32... axb6 {[%clk 0:01:08.2]} 33. Qa6+ {[%clk 0:00:46.7]} 33... Kb8
{[%clk 0:01:08.5]} 34. cxb6 {[%clk 0:00:39.8]} 34... Rf7 {[%clk 0:01:08.1]} 35.
Qd3 {[%clk 0:00:24.3]} 35... Be7 {[%clk 0:00:52.6]} 36. Bb2 {[%clk 0:00:20.5]}
36... Rf2 {[%clk 0:00:47]} 37. Be5+ {[%clk 0:00:19.9]} 37... Kb7 {[%clk
0:00:47.6]} 38. a5 {[%clk 0:00:18.7]} 38... Qxg2# {[%clk 0:00:47.4]} 0-1

[Event "Late-Titled-Tuesday-Blitz-January-23-2024"]
[Site "Chess.com"]
[Date "2024.01.23"]
[Round "9"]
[White "LyonBeast"]
[Black "Grischuk"]
[Result "0-1"]
[WhiteElo "3166"]
[BlackElo "3090"]
[TimeControl "180+1"]
[EndTime "15:41:28 PST"]
[Termination "Grischuk won by resignation"]

1. e4 {[%clk 0:03:00.9]} 1... e5 {[%clk 0:03:00.4]} 2. Nf3 {[%clk 0:03:00.4]}
2... Nc6 {[%clk 0:03:01.1]} 3. Bc4 {[%clk 0:03:00.4]} 3... Bc5 {[%clk 0:03:01]}
4. c3 {[%clk 0:02:59.9]} 4... Nf6 {[%clk 0:03:01.1]} 5. d3 {[%clk 0:03:00.5]}
5... d6 {[%clk 0:02:59.8]} 6. O-O {[%clk 0:02:59.7]} 6... a6 {[%clk 0:02:59.7]}
7. a4 {[%clk 0:02:59.1]} 7... Ba7 {[%clk 0:02:58.7]} 8. Nbd2 {[%clk 0:02:56.4]}
8... O-O {[%clk 0:02:57.9]} 9. h3 {[%clk 0:02:48.3]} 9... h6 {[%clk 0:02:56.8]}
10. Re1 {[%clk 0:02:47.9]} 10... Be6 {[%clk 0:02:53.9]} 11. Bxe6 {[%clk
0:02:47.1]} 11... fxe6 {[%clk 0:02:54.8]} 12. Nf1 {[%clk 0:02:47.5]} 12... a5
{[%clk 0:02:40.5]} 13. Be3 {[%clk 0:02:46.1]} 13... Bxe3 {[%clk 0:02:40.1]} 14.
Rxe3 {[%clk 0:02:46.2]} 14... d5 {[%clk 0:02:39.9]} 15. exd5 {[%clk 0:02:32.6]}
15... Nxd5 {[%clk 0:02:38.3]} 16. Re4 {[%clk 0:02:32.4]} 16... Nf4 {[%clk
0:02:27.8]} 17. d4 {[%clk 0:02:29.5]} 17... Qd5 {[%clk 0:02:06.8]} 18. Ng3
{[%clk 0:02:23.7]} 18... Rad8 {[%clk 0:01:44.2]} 19. Kh2 {[%clk 0:02:22.4]}
19... exd4 {[%clk 0:01:40]} 20. cxd4 {[%clk 0:02:23.3]} 20... e5 {[%clk
0:01:28.7]} 21. Qc1 {[%clk 0:02:07.7]} 21... Nh5 {[%clk 0:00:58.3]} 22. Rg4
{[%clk 0:01:53.8]} 22... Nf6 {[%clk 0:00:56.5]} 23. Rg6 {[%clk 0:01:14.2]} 23...
Kh7 {[%clk 0:00:23.3]} 24. Qc2 {[%clk 0:00:59.2]} 24... exd4 {[%clk 0:00:18.6]}
25. Nf5 {[%clk 0:00:44.4]} 25... d3 {[%clk 0:00:10.4]} 26. Rxg7+ {[%clk
0:00:44.3]} 26... Kh8 {[%clk 0:00:10.7]} 27. Qd2 {[%clk 0:00:44.9]} 27... Qxf5
{[%clk 0:00:09.9]} 28. Qxh6+ {[%clk 0:00:44.7]} 28... Nh7 {[%clk 0:00:10.4]} 29.
Ng5 {[%clk 0:00:45.2]} 29... Qe5+ {[%clk 0:00:07.5]} 0-1

[Event "Late-Titled-Tuesday-Blitz-January-23-2024"]
[Site "Chess.com"]
[Date "2024.01.23"]
[Round "9"]
[White "jamengrand"]
[Black "Noki102"]
[Result "0-1"]
[WhiteElo "2268"]
[BlackElo "2441"]
[TimeControl "180+1"]
[EndTime "15:41:39 PST"]
[Termination "Noki102 won on time"]

1. e4 {[%clk 0:03:00.9]} 1... e5 {[%clk 0:02:59.4]} 2. Nf3 {[%clk 0:02:58.9]}
2... Nc6 {[%clk 0:02:59.8]} 3. Bc4 {[%clk 0:02:57.6]} 3... Nf6 {[%clk
0:02:59.3]} 4. d3 {[%clk 0:02:57.2]} 4... h6 {[%clk 0:02:58.3]} 5. c3 {[%clk
0:02:56.1]} 5... d6 {[%clk 0:02:58.1]} 6. h3 {[%clk 0:02:55.9]} 6... g5 {[%clk
0:02:56.4]} 7. Nbd2 {[%clk 0:02:51.4]} 7... Bg7 {[%clk 0:02:51.9]} 8. Nf1 {[%clk
0:02:51.1]} 8... a6 {[%clk 0:02:43.5]} 9. a4 {[%clk 0:02:48.1]} 9... Qe7 {[%clk
0:02:40.7]} 10. Ng3 {[%clk 0:02:47.2]} 10... g4 {[%clk 0:02:40.2]} 11. Nh4
{[%clk 0:02:27.3]} 11... Qf8 {[%clk 0:02:27.5]} 12. Nhf5 {[%clk 0:02:24.8]}
12... gxh3 {[%clk 0:02:25]} 13. Rxh3 {[%clk 0:02:13.2]} 13... Ne7 {[%clk
0:02:25.2]} 14. Qf3 {[%clk 0:01:58.6]} 14... Bxf5 {[%clk 0:02:17.4]} 15. Nxf5
{[%clk 0:01:57.9]} 15... O-O-O {[%clk 0:02:03.6]} 16. Bd2 {[%clk 0:00:44.1]}
16... d5 {[%clk 0:01:52.7]} 17. exd5 {[%clk 0:00:37.9]} 17... Nexd5 {[%clk
0:01:51.6]} 18. Bxd5 {[%clk 0:00:30.4]} 18... Nxd5 {[%clk 0:01:48]} 19. Qg4
{[%clk 0:00:30.4]} 19... Bf6 {[%clk 0:01:23.5]} 20. Bxh6 {[%clk 0:00:22.7]}
20... Qc5 {[%clk 0:00:52.4]} 21. Ne3+ {[%clk 0:00:19.5]} 21... Kb8 {[%clk
0:00:51.7]} 22. Nxd5 {[%clk 0:00:19.8]} 22... Qxd5 {[%clk 0:00:50.6]} 23. Rd1
{[%clk 0:00:14.6]} 23... Qb3 {[%clk 0:00:44.8]} 24. Qe2 {[%clk 0:00:13.1]} 24...
e4 {[%clk 0:00:37.2]} 25. dxe4 {[%clk 0:00:10.4]} 25... Rxd1+ {[%clk 0:00:36.1]}
26. Qxd1 {[%clk 0:00:10.7]} 26... Qxb2 {[%clk 0:00:36]} 27. Bd2 {[%clk 0:00:09]}
27... Rd8 {[%clk 0:00:34.2]} 28. Rf3 {[%clk 0:00:06.5]} 28... Bg5 {[%clk
0:00:30.5]} 0-1

[Event "Late-Titled-Tuesday-Blitz-January-23-2024"]
[Site "Chess.com"]
[Date "2024.01.23"]
[Round "9"]
[White "Cluke86"]
[Black "ImportedItalianMaple"]
[Result "0-1"]
[WhiteElo "2266"]
[BlackElo "2435"]
[TimeControl "180+1"]
[EndTime "15:41:43 PST"]
[Termination "ImportedItalianMaple won by checkmate"]

1. e4 {[%clk 0:03:00.9]} 1... c5 {[%clk 0:02:40.2]} 2. Nc3 {[%clk 0:03:00.3]}
2... d6 {[%clk 0:02:38.8]} 3. f4 {[%clk 0:03:00.1]} 3... g6 {[%clk 0:02:19.3]}
4. Nf3 {[%clk 0:02:59.8]} 4... Bg7 {[%clk 0:02:19.6]} 5. Bc4 {[%clk 0:02:57.2]}
5... e6 {[%clk 0:02:18.9]} 6. O-O {[%clk 0:02:55.2]} 6... Ne7 {[%clk 0:02:18.1]}
7. d3 {[%clk 0:02:54.7]} 7... O-O {[%clk 0:02:14.2]} 8. Qe1 {[%clk 0:02:53.7]}
8... d5 {[%clk 0:02:07.2]} 9. Bb3 {[%clk 0:02:53.4]} 9... Nbc6 {[%clk
0:01:56.1]} 10. f5 {[%clk 0:02:52.1]} 10... dxe4 {[%clk 0:01:52.4]} 11. f6
{[%clk 0:02:40.3]} 11... Bxf6 {[%clk 0:01:44]} 12. Nxe4 {[%clk 0:02:40.2]} 12...
Bg7 {[%clk 0:01:42.9]} 13. Bg5 {[%clk 0:02:35.2]} 13... h6 {[%clk 0:01:23.2]}
14. Bf6 {[%clk 0:02:31.8]} 14... Bxf6 {[%clk 0:01:06.9]} 15. Nxf6+ {[%clk
0:02:32.7]} 15... Kg7 {[%clk 0:01:07.4]} 16. Ne5 {[%clk 0:02:28.6]} 16... Qd4+
{[%clk 0:01:03.5]} 17. Rf2 {[%clk 0:02:26.6]} 17... Qxe5 {[%clk 0:00:54.8]} 18.
Qf1 {[%clk 0:02:24.9]} 18... Nf5 {[%clk 0:00:53.2]} 19. Ne4 {[%clk 0:02:19.2]}
19... Nfd4 {[%clk 0:00:45.8]} 20. Re1 {[%clk 0:02:04.8]} 20... Nxb3 {[%clk
0:00:45.4]} 21. axb3 {[%clk 0:01:58.6]} 21... f5 {[%clk 0:00:44.9]} 22. c3
{[%clk 0:01:46.6]} 22... Bd7 {[%clk 0:00:41.9]} 23. Nd2 {[%clk 0:01:42.3]} 23...
Qd5 {[%clk 0:00:38.2]} 24. Rfe2 {[%clk 0:01:38.1]} 24... Qxd3 {[%clk 0:00:33.4]}
25. Nc4 {[%clk 0:01:38]} 25... b5 {[%clk 0:00:15.2]} 26. Rd1 {[%clk 0:01:37.1]}
26... bxc4 {[%clk 0:00:15.7]} 27. Rxd3 {[%clk 0:01:35.9]} 27... cxd3 {[%clk
0:00:16.6]} 28. Rd2 {[%clk 0:01:35.7]} 28... Ne5 {[%clk 0:00:16.6]} 29. Qf4
{[%clk 0:01:34.4]} 29... Kf6 {[%clk 0:00:16.4]} 30. Qxh6 {[%clk 0:01:25.7]}
30... Rh8 {[%clk 0:00:15.2]} 31. Qe3 {[%clk 0:01:25.9]} 31... Bc6 {[%clk
0:00:12]} 32. Qxc5 {[%clk 0:01:24.8]} 32... Be4 {[%clk 0:00:12.7]} 33. b4 {[%clk
0:01:22.3]} 33... Rac8 {[%clk 0:00:12.9]} 34. Qxa7 {[%clk 0:01:21.4]} 34... Nc4
{[%clk 0:00:12.8]} 35. Qd4+ {[%clk 0:01:21.1]} 35... e5 {[%clk 0:00:13.3]} 36.
Qf2 {[%clk 0:01:07.1]} 36... Nxd2 {[%clk 0:00:13.9]} 37. Qxd2 {[%clk 0:01:07.9]}
37... Ra8 {[%clk 0:00:14.3]} 38. h3 {[%clk 0:01:07.1]} 38... Ra1+ {[%clk
0:00:14.3]} 39. Kf2 {[%clk 0:01:06.8]} 39... Rd8 {[%clk 0:00:13]} 40. h4 {[%clk
0:01:06.7]} 40... f4 {[%clk 0:00:10.5]} 41. g3 {[%clk 0:01:06.1]} 41... Kf5
{[%clk 0:00:10.7]} 42. gxf4 {[%clk 0:01:05.5]} 42... exf4 {[%clk 0:00:10.9]} 43.
c4 {[%clk 0:01:04.8]} 43... Rh1 {[%clk 0:00:11.2]} 44. Qc3 {[%clk 0:01:04.6]}
44... Rh2+ {[%clk 0:00:11.6]} 45. Kg1 {[%clk 0:01:03.7]} 45... d2 {[%clk
0:00:11.6]} 46. Qg7 {[%clk 0:01:01.6]} 46... Rg2+ {[%clk 0:00:09.8]} 47. Kf1
{[%clk 0:01:01]} 47... d1=Q# {[%clk 0:00:10.4]} 0-1